bitfinex-derivatives/quotes_SOLF0:USTF0_20260211
["timestamp","ask_amount","ask_price","bid_price","bid_amount"]
[1770827391398,11.2475,80.054,80.008,11.2538]
[1770827391604,11.2475,80.054,80.016,0.07940613]
[1770827391909,9.2841323,80.073,80.016,0.07940613]
[1770827392106,9.2841323,80.072,80.016,0.07940613]
[1770827392311,9.2841323,80.071,80.016,0.07940613]
[1770827392500,9.2841323,80.07,80.008,16.17227101]
[1770827392700,9.2841323,80.069,80.008,16.17227101]
[1770827393005,9.2841323,80.068,80.008,16.17227101]
[1770827393305,110.96,80.075,80.008,16.17227101]
[1770827393306,9.2841323,80.067,80.008,16.17227101]
[1770827393500,9.2841323,80.066,80.008,16.17227101]
[1770827393701,11.2481,80.05,80.002,4.91675469]
[1770827394507,9.2841323,80.062,80.011,4.91648503]
[1770827394706,110.9,80.084,80.011,4.91648503]
[1770827395209,11.52089866,80.108,80.036,11.2498]
[1770827395408,10.70005218,80.1,80.036,11.2498]
[1770827395601,9.29267795,80.099,80.036,11.2498]
[1770827395804,11.244,80.079,80.032,4.9164626]
[1770827396201,9.29267795,80.096,80.032,4.9164626]
[1770827396405,10.70005218,80.08,80.016,4.9246115]
[1770827396608,9.29267795,80.079,80.016,4.9246115]
[1770827396799,9.29267795,80.078,80.016,4.9246115]
[1770827396996,11.2469,80.058,80.016,4.9246115]
[1770827397205,11.2469,80.058,80.011,11.2534]
[1770827397405,10.70005218,80.08,79.998,4.92458951]
[1770827397406,110.96,80.073,79.998,4.92458951]
[1770827397602,11.2477,80.052,80.008,11.2539]
[1770827398609,11.2486,80.046,80.001,11.2548]
[1770827399303,11.2486,80.046,80.007,11.2539]
[1770827400000,10.70005218,80.04,79.976,4.95995731]
[1770827400309,10.70005218,80.04,79.939,500.20992803]
[1770827400310,10.70005218,80.02,79.954,4.95905202]
[1770827400713,10.70005218,80.0,79.933,4.95905202]
[1770827401102,99.7,80.031,79.873,294.0]
[1770827401103,9.30694344,80.028,79.979,4.95904474]
[1770827401304,10.70005218,80.04,79.979,4.95904474]
[1770827401710,10.70005218,80.04,79.96,10.70005218]
[1770827401711,11.254,80.008,79.954,16.22044474]
[1770827401901,9.29758098,80.038,79.936,4.95904474]
[1770827402209,11.26,79.965,79.905,11.2683]
[1770827402506,10.70005218,79.98,79.906,4.989624]
[1770827402707,10.70005218,79.98,79.924,4.989624]
[1770827403108,10.70005218,80.0,79.924,4.989624]
[1770827403303,11.2558,79.995,79.936,4.98960713]
[1770827403503,10.70005218,80.0,79.936,4.98960713]
[1770827403701,10.70005218,79.98,79.903,4.98960713]
[1770827404600,10.70005218,80.02,79.921,5.03151917]
[1770827404812,10.70005218,80.04,79.941,5.03151917]
[1770827405200,10.70005218,80.04,79.961,5.03150684]
[1770827405512,10.70005218,80.04,79.98,5.03150684]
[1770827406015,11.2507,80.031,79.98,5.03150684]
[1770827408809,10.70005218,80.07,79.986,4.90963372]
[1770827409318,10.70005218,80.05,79.986,4.90963372]
[1770827409517,9.27431057,80.069,79.942,99.74]
[1770827409518,10.70005218,80.03,79.969,4.90961789]
[1770827410009,99.74,80.076,79.969,4.90961789]
[1770827410010,10.70005218,80.05,79.969,4.90961789]
[1770827410517,10.70005218,80.05,79.987,11.2568]
[1770827410719,10.70005218,80.05,79.988,4.99397738]
[1770827411717,11.2483,80.048,79.99,4.9939744]
[1770827412011,0.08057904,80.027,79.99,4.9939744]
[1770827412415,0.08057904,80.027,79.992,11.256]
[1770827412608,0.08057904,80.027,79.99,4.9939744]
[1770827413102,10.70005218,80.05,80.009,11.2537]
[1770827413308,9.26771191,80.068,80.009,11.2537]
[1770827413309,111.38,80.07,80.009,4.91396582]
[1770827414213,10.70005218,80.04,79.991,4.91396582]
[1770827414812,10.70005218,80.06,79.992,4.86760959]
[1770827415512,10.70005218,80.06,80.001,4.86760702]
[1770827415704,10.70005218,80.06,79.983,4.86760702]
[1770827416112,11.247,80.058,79.983,4.86760702]
[1770827416814,111.48,80.069,79.958,133.6217]
[1770827416815,11.2456,80.067,80.012,16.09372951]
[1770827417007,11.2456,80.067,79.98,10.70005218]
[1770827417008,10.70005218,80.06,79.97,4.84052951]
[1770827417412,11.2496,80.039,79.983,11.2574]
[1770827417612,11.2496,80.039,79.96,10.70005218]
[1770827417613,10.70005218,80.05,79.984,4.84052061]
[1770827417815,11.2495,80.04,79.986,4.84052061]
[1770827418128,10.70005218,80.05,79.986,4.84052061]
[1770827418309,9.25945249,80.066,79.986,4.84052061]
[1770827418508,111.7,80.067,79.986,4.84052061]
[1770827418708,10.70005218,80.07,80.006,4.82211725]
[1770827419415,10.70005218,80.07,80.03,0.08000006]
[1770827419809,9.26185907,80.089,80.03,0.08000006]
[1770827420011,10.70005218,80.07,80.03,0.08000006]
[1770827420422,9.2655034,80.069,80.005,4.82211452]
[1770827420623,11.2472,80.056,80.005,4.82211452]
[1770827420820,10.70005218,80.05,79.988,4.76206721]
[1770827421021,9.26297397,80.049,79.988,4.76206721]
[1770827421209,9.26297397,80.049,79.961,4.76206721]
[1770827421210,10.70005218,80.03,79.961,4.76206721]
[1770827421522,11.2523,80.02,79.97,11.2591]
[1770827422614,11.2523,80.02,79.987,0.07901102]
[1770827423616,10.70005218,80.03,79.987,0.07901102]
[1770827423824,10.70005218,80.05,79.987,4.84566231]
[1770827424524,10.70005218,80.05,79.987,4.76665129]
[1770827424911,111.6,80.067,80.001,11.2548]
[1770827425116,111.6,80.067,80.001,4.76524728]
[1770827425322,9.26778466,80.066,80.001,4.76524728]
[1770827425623,10.70005218,80.05,79.961,4.76524724]
[1770827426019,10.70005218,80.05,79.968,4.76524724]
[1770827426211,9.26778466,80.049,79.968,4.76524724]
[1770827426710,11.2502,80.035,79.992,11.2561]
[1770827426910,10.70005218,80.05,79.992,11.2561]
[1770827427115,10.70005218,80.05,79.984,4.74519929]
[1770827427420,11.2511,80.028,79.984,4.74519929]
[1770827427924,11.251,80.029,79.985,11.2571]
[1770827428119,11.251,80.029,79.984,4.74519929]
[1770827428317,9.2688791,80.048,79.984,4.74519929]
[1770827428522,10.70005218,80.05,79.984,4.74519929]
[1770827428717,10.70005218,80.05,79.998,0.08043258]
[1770827429325,10.70005218,80.05,79.995,4.74459689]
[1770827429725,11.2473,80.055,79.995,4.74459689]
[1770827430118,10.70005218,80.05,80.014,0.08134731]
[1770827430314,26.09290179,80.09,80.014,0.08134731]
[1770827430315,11.2483,80.048,80.014,0.08134731]
[1770827430824,11.2483,80.048,79.995,4.74459689]
[1770827430825,11.2467,80.059,79.995,4.74459689]
[1770827431419,11.2467,80.059,80.008,11.2539]
[1770827431729,11.2467,80.059,79.995,4.74459689]
[1770827431925,11.2477,80.053,80.008,11.2539]
[1770827432119,10.70005218,80.07,80.008,11.2539]
[1770827432320,9.27703182,80.069,80.008,11.2539]
[1770827432625,9.27703182,80.069,79.995,4.74459689]
[1770827432626,10.70005218,80.05,79.995,4.74459689]
[1770827433127,11.2495,80.04,79.995,4.74459689]
[1770827433722,11.2483,80.048,80.003,11.2545]
[1770827434224,11.2472,80.056,80.009,11.2536]
[1770827434429,0.08285254,80.034,80.009,11.2536]
[1770827434626,0.08285254,80.034,79.995,4.74459689]
[1770827435423,19.97816057,80.07,80.01,4.68004371]
[1770827435620,107.78,80.083,80.01,4.68004371]
[1770827435824,9.27859072,80.082,80.01,4.68004371]
[1770827436024,11.2459,80.065,80.021,11.252]
[1770827436424,9.27859072,80.079,80.01,4.68004371]
[1770827436630,107.78,80.083,80.01,4.68004371]
[1770827436631,11.2449,80.073,80.01,4.68004371]
[1770827436933,107.78,80.083,80.01,4.68004371]
[1770827437234,11.2436,80.082,80.033,0.08212184]
[1770827437434,111.64,80.108,80.033,4.76479502]
[1770827437638,111.64,80.108,80.047,4.68267318]
[1770827438026,3.75285235,80.153,80.047,4.68267318]
[1770827438027,11.58644103,80.134,80.047,4.68267318]
[1770827438231,10.70005218,80.13,80.047,4.68267318]
[1770827438443,9.27923723,80.133,80.047,4.68267318]
[1770827438444,10.70005218,80.11,80.047,4.68267318]
[1770827438843,9.27923723,80.136,80.054,4.68243067]
[1770827439147,9.27532038,80.149,80.054,4.68243067]
[1770827439446,9.27532038,80.148,80.054,4.68243067]
[1770827439745,9.27532038,80.147,80.071,4.68242544]
[1770827439942,99.72,80.149,80.071,4.68242544]
[1770827440137,0.05926177,80.148,80.071,4.68242544]
[1770827440334,10.75931395,80.13,80.071,4.68242544]
[1770827440543,0.05926177,80.129,80.071,4.68242544]
[1770827440943,11.2376,80.124,80.072,11.2449]
[1770827441142,0.05926177,80.129,80.072,11.2449]
[1770827441541,9.27497008,80.148,80.071,4.68242544]
[1770827441542,0.05922377,80.127,80.071,4.68242544]
[1770827442247,0.05922377,80.127,80.091,0.07980905]
[1770827442544,0.21812555,80.147,80.091,0.07980905]
[1770827443141,0.21812555,80.147,80.087,4.49886898]
[1770827443341,11.2347,80.145,80.096,11.2415]
[1770827443539,11.2347,80.145,80.087,4.49886898]
[1770827443844,0.21807828,80.136,80.078,11.244]
[1770827444044,0.21807828,80.136,80.07,4.49886614]
[1770827444555,3.96878312,80.179,80.081,4.26868834]
[1770827444753,3.96878312,80.159,80.081,4.26868834]
[1770827444948,3.97167139,80.133,80.062,4.26868834]
[1770827445852,10.70005218,80.16,80.062,4.26868834]
[1770827445853,11.2388,80.116,80.062,4.26868834]
[1770827446048,15.21288681,80.116,80.062,4.26868834]
[1770827446251,3.97408681,80.116,80.062,4.26868834]
[1770827446449,3.97408681,80.116,80.065,11.2458]
[1770827447248,3.97408681,80.116,80.073,11.2447]
[1770827447543,10.69272194,80.12,80.073,11.2447]
[1770827447743,11.2365,80.132,80.082,11.2434]
[1770827447953,11.2365,80.132,80.086,0.08267505]
[1770827448348,21.92812194,80.14,80.088,11.2426]
[1770827448550,4.12694146,80.119,80.058,4.26868834]
[1770827448856,4.12694146,80.119,80.031,4.26868834]
[1770827449054,99.66,80.126,80.051,11.2478]
[1770827449055,10.69272194,80.1,80.051,11.2478]
[1770827449248,4.0467906,80.099,80.031,4.26868834]
[1770827449445,10.69272194,80.09,80.031,4.26868834]
[1770827449842,10.69272194,80.09,79.991,4.26868834]
[1770827449843,4.0467906,80.089,79.991,4.26868834]
[1770827450048,10.69272194,80.07,79.991,4.26868834]
[1770827450444,0.07939255,80.048,80.014,11.2529]
[1770827450655,0.07939255,80.048,80.011,4.40550709]
[1770827451953,0.07939255,80.048,80.021,11.2519]
[1770827452154,0.07939255,80.048,79.991,4.40550709]
[1770827452749,10.69272194,80.07,80.007,4.40550709]
[1770827453356,4.07385886,80.118,80.035,4.40550709]
[1770827453550,4.07385886,80.137,80.035,4.40550709]
[1770827453748,4.07385886,80.137,80.041,4.40550709]
[1770827454262,11.2369,80.13,80.082,11.2435]
[1770827454448,4.07385886,80.137,80.082,11.2435]
[1770827454766,4.05271404,80.119,80.064,11.246]
[1770827454956,4.05271404,80.119,80.041,4.40550709]
[1770827455366,11.2406,80.103,80.054,11.2474]
[1770827455555,10.69272194,80.1,80.041,4.40550709]
[1770827455757,4.13613298,80.088,80.022,4.40550709]
[1770827456059,10.69272194,80.08,80.022,4.40550709]
[1770827456762,0.07915932,80.059,80.023,11.2517]
[1770827457659,0.07915932,80.059,80.031,11.2506]
[1770827458057,99.66,80.109,80.022,4.40550709]
[1770827458058,4.0235173,80.096,80.022,4.40550709]
[1770827458258,4.0235173,80.096,80.039,11.2494]
[1770827458565,4.0235173,80.096,80.022,4.40550709]
[1770827458961,4.0235173,80.096,80.039,11.2494]
[1770827459357,4.0235173,80.096,80.039,15.65490709]
[1770827459557,11.2418,80.095,80.039,15.65490709]
[1770827459752,4.06721529,80.094,80.039,15.65490709]
[1770827460360,10.69272194,80.1,80.039,4.40550709]
[1770827460565,10.69272194,80.14,80.051,4.40550709]
[1770827460957,10.69272194,80.14,80.086,11.2428]
[1770827461359,4.04846072,80.139,80.078,4.40550709]
[1770827461560,4.04846072,80.127,80.06,4.40550709]
[1770827461761,10.69272194,80.12,80.06,4.40550709]
[1770827462258,14.78616686,80.14,80.06,4.40550709]
[1770827462659,11.2362,80.135,80.085,11.243]
[1770827462854,14.78616686,80.14,80.085,11.243]
[1770827463068,4.09597158,80.123,80.068,11.2454]
[1770827463558,4.09597158,80.123,80.074,11.2446]
[1770827464153,10.69272194,80.12,80.074,11.2446]
[1770827464555,11.2383,80.119,80.074,11.2446]
[1770827464763,11.2383,80.119,80.066,11.2456]
[1770827464965,11.2383,80.119,80.057,4.40550709]
[1770827465664,10.69272194,80.12,80.074,11.2446]
[1770827465860,10.69272194,80.12,80.057,4.40550709]
[1770827466769,21.93102194,80.12,80.066,11.2456]
[1770827467068,10.69272194,80.14,80.057,4.40550709]
[1770827467865,11.2366,80.132,80.08,11.2436]
[1770827468061,10.69272194,80.12,80.057,4.40550709]
[1770827468270,14.84100946,80.12,80.057,4.40550709]
[1770827468866,11.2387,80.116,80.069,11.2453]
[1770827469060,4.14975624,80.119,80.057,4.40550709]
[1770827469261,4.15178884,80.13,80.057,4.40550709]
[1770827469670,11.2381,80.121,80.074,11.2446]
[1770827469865,4.15178884,80.13,80.057,4.40550709]
[1770827470262,11.238,80.122,80.057,4.40550709]
[1770827470970,11.238,80.122,80.074,11.2445]
[1770827471267,11.238,80.122,80.057,4.40550709]
[1770827471570,4.15178884,80.13,80.057,4.40550709]
[1770827472157,11.2386,80.117,80.057,4.40550709]
[1770827472364,4.15178884,80.13,80.057,4.40550709]
[1770827472567,10.69272194,80.14,80.074,4.40550709]
[1770827472770,11.2351,80.142,80.074,4.40550709]
[1770827473361,4.13542428,80.147,80.09,4.40550709]
[1770827474365,4.12878953,80.158,80.09,4.40550709]
[1770827475062,4.12878953,80.158,80.116,0.07874257]
[1770827475970,4.12878953,80.158,80.118,11.2384]
[1770827476666,4.13448891,80.156,80.116,0.07874257]
[1770827477064,4.13448891,80.156,80.117,11.2386]
[1770827478374,4.13448891,80.156,80.116,0.07874257]
[1770827478375,4.13448891,80.156,80.123,11.2377]
[1770827478968,11.2307,80.173,80.13,11.2367]
[1770827479161,11.2307,80.173,80.122,4.40550709]
[1770827479368,4.14503648,80.175,80.116,0.07874257]
[1770827479369,10.69272194,80.16,80.116,0.07874257]
[1770827479568,10.69272194,80.16,80.104,4.40550709]
[1770827479769,4.14484677,80.151,80.107,11.2399]
[1770827480375,4.14484677,80.151,80.087,4.40550709]
[1770827480376,4.14484677,80.151,80.113,11.239]
[1770827482568,11.234,80.15,80.106,11.2401]
[1770827483076,4.14484677,80.151,80.087,4.40550709]
[1770827484268,4.14484677,80.151,80.111,0.07872319]
[1770827484673,4.12222652,80.139,80.07,4.54189225]
[1770827486072,11.2365,80.132,80.087,11.2427]
[1770827489973,15.24783186,80.132,80.087,11.2427]
[1770827490577,11.2378,80.123,80.078,11.2439]
[1770827490780,15.24734303,80.123,80.078,11.2439]
[1770827491281,4.0107879,80.141,80.084,4.65368853]
[1770827491483,4.0107879,80.141,80.067,4.65368853]
[1770827491681,0.07875498,80.109,80.079,11.2438]
[1770827493278,0.07875498,80.109,80.067,4.65368853]
[1770827493279,0.07875498,80.109,80.069,11.2452]
[1770827493580,0.07875498,80.109,80.036,22.4998]
[1770827493581,4.00978612,80.099,80.035,4.65368853]
[1770827493780,49.01915197,80.136,80.0,10.69272194]
[1770827493781,14.70250806,80.08,80.008,4.65368853]
[1770827493979,4.00978612,80.079,80.033,11.2503]
[1770827494180,0.08218304,80.075,80.033,11.2503]
[1770827494476,0.08218304,80.075,80.023,4.65368853]
[1770827495081,11.2443,80.076,80.023,15.90538853]
[1770827495273,4.00978612,80.079,80.006,4.65368853]
[1770827495678,4.11775562,80.067,80.011,11.2534]
[1770827495881,4.20011179,80.051,79.975,4.65368853]
[1770827496183,4.20011179,80.051,79.991,11.2562]
[1770827496379,4.20011179,80.051,79.944,22.5256]
[1770827496380,4.10598268,80.019,79.955,4.65368853]
[1770827497075,4.10598268,80.019,79.96,11.2605]
[1770827497277,4.10598268,80.019,79.955,4.65368853]
[1770827497278,0.07880959,79.995,79.955,4.65368853]
[1770827497683,11.58316411,80.058,79.93,10.69272194]
[1770827497684,4.18597995,80.059,79.967,4.65368853]
[1770827497877,4.18597995,80.059,79.971,4.65368853]
[1770827498077,10.69272194,80.06,79.971,4.65368853]
[1770827498379,10.69272194,80.07,80.009,4.65368853]
[1770827498581,4.17079592,80.069,80.009,4.65368853]
[1770827498782,4.17079592,80.068,80.01,11.2535]
[1770827499681,4.17198866,80.087,80.02,4.65368853]
[1770827500779,4.19693696,80.084,80.026,11.2513]
[1770827500979,4.19693696,80.084,80.02,4.65368853]
[1770827501182,10.69272194,80.07,80.02,4.65368853]
[1770827501984,10.69272194,80.07,80.0,4.65368853]
[1770827501985,4.19809598,80.069,80.0,4.65368853]
[1770827502380,10.69272194,80.09,79.984,108.9]
[1770827502381,4.206388,80.088,80.012,4.65368853]
[1770827503876,4.20757658,80.087,80.024,11.2516]
[1770827504082,4.20757658,80.087,80.012,4.65368853]
[1770827504382,4.20757658,80.087,80.033,11.2503]
[1770827504887,99.66,80.105,80.047,11.2483]
[1770827505086,4.21627909,80.104,80.047,11.2483]
[1770827505790,99.66,80.105,80.028,4.65368853]
[1770827505791,4.21627909,80.089,80.028,4.65368853]
[1770827506276,4.21626214,80.075,80.028,11.251]
[1770827508387,10.69272194,80.09,80.036,11.2499]
[1770827508592,4.21627909,80.089,80.009,4.65368853]
[1770827509888,11.2427,80.088,80.036,11.2499]
[1770827510084,4.21627909,80.089,80.036,11.2499]
[1770827510285,4.21627909,80.089,80.026,4.65368853]
[1770827510489,4.21627909,80.089,80.0,10.69959191]
[1770827510490,4.45363103,80.079,80.028,11.251]
[1770827511892,11.2446,80.075,80.028,11.251]
[1770827513789,10.69959191,80.09,80.036,4.41905684]
[1770827513990,4.45162632,80.097,80.036,4.41905684]
[1770827514185,11.2375,80.125,80.078,11.244]
[1770827514389,4.4492438,80.13,80.065,4.41905684]
[1770827514795,11.2392,80.113,80.041,4.41905684]
[1770827515092,10.69959191,80.11,80.041,4.41905684]
[1770827515285,4.45025727,80.109,80.041,4.41905684]
[1770827515490,10.69959191,80.09,80.011,4.41905684]
[1770827515889,15.15078061,80.09,80.011,4.41905684]
[1770827516093,4.4511887,80.089,80.011,4.41905684]
[1770827516294,4.4511887,80.089,80.037,11.2497]
[1770827516687,4.4511887,80.089,80.011,4.41905684]
[1770827517094,11.2458,80.066,80.015,11.2528]
[1770827517291,10.69959191,80.09,80.015,11.2528]
[1770827517292,4.35565233,80.065,80.015,11.2528]
[1770827517989,11.247,80.057,80.011,4.41905684]
[1770827518190,4.35565233,80.065,80.011,4.41905684]
[1770827518892,15.60165233,80.065,80.02,11.2521]
[1770827519199,4.35565233,80.065,80.011,4.41905684]
[1770827519497,4.35565233,80.065,79.98,10.69959191]
[1770827519498,4.35565233,80.065,80.004,11.2544]
[1770827519694,10.69959191,80.05,79.994,4.41905684]
[1770827520095,11.2487,80.045,79.994,15.67475684]
[1770827520296,10.69959191,80.05,79.994,4.41905684]
[1770827520595,10.69959191,80.07,79.994,4.41905684]
[1770827520791,10.69959191,80.07,80.015,4.41905684]
[1770827521296,14.97305555,80.07,80.015,4.41905684]
[1770827521996,4.27424593,80.069,80.015,4.41905684]
[1770827522499,10.69959191,80.05,80.01,15.25]
[1770827522997,4.27231527,80.058,80.01,15.25]
[1770827523701,11.2472,80.056,80.01,15.25]
[1770827523997,4.27405578,80.069,80.011,4.41905684]
[1770827524701,4.27405578,80.069,80.01,15.25]
[1770827524702,4.25052675,80.058,80.01,15.25]
[1770827524897,10.69959191,80.07,80.01,19.66905684]
[1770827525200,11.2461,80.064,80.01,19.66905684]
[1770827525604,11.2471,80.056,80.01,26.5035]
[1770827526103,4.25135508,80.064,80.011,4.41905684]
[1770827526804,15.49745508,80.064,80.017,11.2526]
[1770827527193,4.25135508,80.064,80.01,15.25]
[1770827527688,11.2471,80.057,80.011,11.2535]
[1770827528492,4.25135508,80.064,80.018,11.2523]
[1770827528692,10.69959191,80.05,80.01,15.25]
[1770827529197,11.2484,80.048,80.01,15.25]
[1770827529404,4.26194545,80.048,79.957,4.41905684]
[1770827529601,10.69959191,80.03,79.957,4.41905684]
[1770827529802,4.26194545,80.029,79.957,4.41905684]
[1770827530105,4.26284307,80.047,79.975,4.41905684]
[1770827530601,11.2492,80.042,79.997,11.2554]
[1770827530809,11.2492,80.042,79.975,4.41905684]
[1770827531599,4.26284307,80.047,79.975,4.41905684]
[1770827531905,10.69959191,80.03,79.975,4.41905684]
[1770827533203,4.26284307,80.047,79.975,4.41905684]
[1770827533409,11.2506,80.032,79.987,11.2568]
[1770827533703,4.24627293,80.045,79.987,11.2568]
[1770827534207,11.2505,80.032,79.987,11.2568]
[1770827535015,11.2496,80.039,79.993,11.2559]
[1770827535712,4.24627293,80.045,79.999,11.255]
[1770827535906,4.24627293,80.045,79.99,4.41905684]
[1770827536107,4.24627293,80.045,79.975,4.41905684]
[1770827537011,11.25,80.036,79.996,11.2555]
[1770827538114,11.25,80.036,79.989,11.2565]
[1770827538407,4.24627293,80.045,79.975,4.41905684]
[1770827539608,10.69959191,80.05,79.972,7.4]
[1770827539609,4.26151202,80.029,79.972,7.4]
[1770827540012,11.2543,80.006,79.972,7.4]
[1770827540409,4.26226771,80.012,79.972,7.4]
[1770827540610,11.2537,80.01,79.972,7.4]
[1770827541519,15.53580423,80.01,79.972,7.4]
[1770827541822,4.28210423,80.01,79.972,7.4]
[1770827542214,4.28281714,80.027,79.972,7.4]
[1770827542415,4.28281714,80.027,79.973,4.62312934]
[1770827542915,10.69959191,80.04,79.973,4.62312934]
[1770827543221,4.32217132,80.043,79.973,4.62312934]
[1770827544019,11.2494,80.041,79.994,15.87902934]
[1770827544714,9.26302562,80.054,79.995,4.62312934]
[1770827544914,9.26302562,80.054,79.972,7.4]
[1770827544915,4.32217132,80.057,79.978,4.62312934]
[1770827545110,4.32217132,80.055,79.978,4.62312934]
[1770827545316,11.2492,80.042,79.995,11.2557]
[1770827545512,4.32217132,80.039,79.978,4.62312934]
[1770827546724,11.2502,80.035,79.988,11.2567]
[1770827546910,4.2451743,80.034,79.988,11.2567]
[1770827547623,11.2515,80.026,79.98,11.2577]
[1770827547919,15.4966743,80.026,79.98,11.2577]
[1770827548509,4.2451743,80.025,79.98,11.2577]
[1770827549111,4.2451743,80.025,79.986,11.2569]
[1770827551922,4.2451743,80.029,79.983,11.2574]
[1770827552123,4.2451743,80.029,79.973,4.67499307]
[1770827553024,10.69959191,80.05,79.989,11.2565]
[1770827553025,11.2495,80.04,79.989,11.2565]
[1770827553227,11.2495,80.04,79.973,4.67499307]
[1770827553228,4.2451743,80.039,79.973,4.67499307]
[1770827553526,4.2451743,80.037,79.973,4.67499307]
[1770827553926,4.2451743,80.048,79.987,4.67499307]
[1770827554426,4.2451743,80.048,80.009,11.2537]
[1770827554826,4.2451743,80.048,79.987,4.67499307]
[1770827555929,15.4935743,80.048,80.0,11.255]
[1770827556633,4.2451743,80.048,80.006,11.254]
[1770827556828,4.2451743,80.048,79.987,4.67499307]
[1770827557832,15.4934743,80.048,79.998,11.2552]
[1770827558026,15.4934743,80.048,79.998,4.67499307]
[1770827558944,4.2451743,80.048,80.004,11.2543]
[1770827559228,11.2472,80.056,80.005,4.67499307]
[1770827559427,11.2464,80.062,80.01,4.67499307]
[1770827560835,11.2464,80.062,80.013,15.92809307]
[1770827561133,11.2464,80.062,80.014,4.67499307]
[1770827561836,11.2464,80.062,80.015,11.2528]
[1770827562024,4.2451743,80.054,79.993,4.67499307]
[1770827563031,4.2451743,80.046,79.973,4.67499307]
[1770827563235,4.2451743,80.044,79.973,4.67499307]
[1770827563428,4.2451743,80.042,79.973,4.67499307]
[1770827563624,4.2451743,80.029,79.973,4.67499307]
[1770827563833,13.53496514,80.028,79.973,4.67499307]
[1770827564034,4.2451743,80.028,79.973,4.67499307]
[1770827564636,4.2451743,80.028,79.972,7.4]
[1770827564839,4.2451743,80.026,79.972,7.4]
[1770827565035,4.2451743,80.007,79.94,4.67499307]
[1770827565237,9.29099738,80.006,79.94,4.67499307]
[1770827565432,9.29099738,80.005,79.94,4.67499307]
[1770827565637,9.29099738,80.004,79.94,4.67499307]
[1770827565939,9.29099738,80.003,79.94,4.67499307]
[1770827566138,9.29099738,80.002,79.94,4.67499307]
[1770827566335,10.69959191,80.01,79.94,4.67499307]
[1770827566535,9.28793476,80.009,79.94,4.67499307]
[1770827566731,11.255,80.001,79.947,11.2623]
[1770827567231,10.69959191,80.01,79.947,11.2623]
[1770827567435,10.69959191,79.99,79.923,6.17986351]
[1770827567938,10.69959191,79.99,79.938,6.17986351]
[1770827568128,10.69959191,80.02,79.954,6.17986351]
[1770827568333,9.28074943,80.019,79.954,6.17986351]
[1770827568537,11.2557,79.996,79.954,6.17986351]
[1770827568741,11.2557,79.996,79.949,11.2621]
[1770827568935,11.2557,79.996,79.936,6.21508335]
[1770827568936,10.72611463,80.0,79.936,6.21508335]
[1770827569138,11.257,79.986,79.936,6.21508335]
[1770827571037,10.72611463,79.99,79.92,6.21814027]
[1770827571233,9.26694778,79.989,79.92,6.21814027]
[1770827571435,11.2593,79.97,79.92,6.21814027]
[1770827571634,10.72611463,79.97,79.903,6.21844035]
[1770827571838,10.72611463,79.96,79.903,6.21844035]
[1770827572238,11.2598,79.967,79.91,6.22034446]
[1770827572545,10.72611463,79.98,79.91,6.22034446]
[1770827572743,9.259112,79.979,79.91,6.22034446]
[1770827573041,9.259112,79.978,79.91,6.22034446]
[1770827573245,10.72611463,79.98,79.91,6.22034446]
[1770827573739,11.2608,79.959,79.91,6.22034446]
[1770827574240,10.72611463,79.96,79.91,6.22034446]
[1770827574739,10.72611463,79.96,79.871,6.21838355]
[1770827574945,10.72611463,79.98,79.891,6.21838355]
[1770827575244,10.72611463,79.98,79.903,6.21859968]
[1770827575444,10.72611463,79.96,79.903,6.21859968]
[1770827576750,11.2604,79.962,79.905,6.35312166]
[1770827577247,10.72611463,79.98,79.905,6.35312166]
[1770827577443,11.2591,79.971,79.918,11.2665]
[1770827577936,21.98411463,79.98,79.918,11.2665]
[1770827578338,10.72611463,79.98,79.909,6.35393661]
[1770827578640,10.72611463,79.96,79.909,6.35393661]
[1770827579548,10.72611463,79.98,79.909,6.35393661]
[1770827579749,10.72611463,79.99,79.909,6.35393661]
[1770827580149,11.2576,79.982,79.927,6.35421388]
[1770827580650,11.2587,79.974,79.927,6.35421388]
[1770827581043,10.72611463,79.97,79.927,6.35421388]
[1770827581246,11.2596,79.968,79.918,11.2665]
[1770827581448,10.72611463,79.97,79.911,6.3352159]
[1770827581647,10.72611463,79.95,79.884,6.33547716]
[1770827581946,11.2634,79.941,79.887,11.2709]
[1770827582344,11.2663,79.92,79.867,11.2736]
[1770827582849,10.72611463,79.91,79.867,11.2736]
[1770827583051,10.72611463,79.91,79.859,6.32102461]
[1770827583747,11.2678,79.909,79.859,17.59582461]
[1770827583943,10.72611463,79.91,79.859,6.32102461]
[1770827584143,10.72611463,79.91,79.816,6.3212777]
[1770827584552,10.72611463,79.91,79.81,10.72611463]